{"text_format":"1","workbook":"xlsx","n_sheets":9,"sheets":["Gegevens aanvrager","TENT","GAS","VUURWERK","CARNAVAL","KAMPVUUR","Inplantingsplan","Organisatie","Intro"],"not_rendered":{"charts":0,"images":4,"macros":1,"external_links":0,"defined_names":8,"comments":4,"pivot_tables":0},"unopened":[],"bounds":{"document_bytes":16777216,"sheet_cells":100000,"rows_first":2000,"rows_last":500,"rows_between":2000,"halvings":0,"cell_chars":16384,"cell_head_chars":4096},"cells_cut":0,"cells_raw":0,"read":"whole","date_system":"1900"}

{"sheet":"Gegevens aanvrager","index":0,"n_rows":35,"n_cols":11,"rows_kept":35,"cut":false,"hidden":false,"merged":[[34,1,34,4],[33,1,33,4],[18,0,18,1],[7,0,7,4],[0,0,6,4],[8,0,8,1],[31,1,31,4],[32,1,32,4]]}
[]
[]
[]
[]
[]
[]
[]
["ALGEMENE INFORMATIE EVENEMENT",null,null,null,null,"Info",null,null,{"$f":"COUNTBLANK(B10:B18)","v":9}]
["Gegevens evenement",null,null,null,null,null,null,null,{"$f":"COUNTBLANK(B20:B30)","v":11}]
["Naam Evenement:",null,null,null,null,null,null,null,{"$f":"SUM(I8:I9)","v":20}]
["Straat & nr.",null,null,null,null,null,null,null,{"$f":"OR(B15>2999,B16>500,B17>500,B18>1499)","v":false}]
["Gemeente",null,null,null,null,null,null,null,{"$f":"IF(B15>9999,1,)","v":0}]
["Postnummer"]
["Datum Evenement: dd/mm/jjjj"]
["Aantal te verwachten Bezoekers totaal/dag"]
["Aantal te verwachten Bezoekers < 10j"]
["Aantal te verwachten Bezoekers > 65j"]
["Aantal te verwachten Bezoekers Hoogtepunt"]
["Gegevens Organisatie"]
["Naam Organisatie"]
["KBO nr. of Rijksregister nr."]
["Straat & nr."]
["Gemeente"]
["Postnummer"]
["Contactpersoon Evenement"]
["Telefoonnummer Contactpersoon",null,null,null,null,null,null,null,null,{"$f":"IF(B15>0,1,0)","v":0},"EHBO-koffer + verantwoordelijke hulpverlener"]
["GSM Contactpersoon",null,null,null,null,null,null,null,null,{"$f":"IF(B15>1499,1,0)","v":0},"Kruispost met minimale bezetting"]
["Mailadres verantwoordelijke",null,null,null,null,null,null,null,null,{"$f":"IF(B15>2999,1,0)","v":0},"Kruispost met minimale bezetting + BLS"]
["Start Evenement: dd/mm/jjjj  uu:mm",null,null,null,null,null,null,null,null,{"$f":"IF(B15>4999,1,0)","v":0},"Nieuw advies aanvragen"]
["Einde Evenement: dd/mm/jjjj uu:mm",null,null,null,null,null,null,null,null,{"$f":"SUM(J26:J29)","v":0}]
["Tijdsduur Evenement",{"$f":"B30-B29","v":0}]
["Prima dossier:",{"$f":"IF(J30=1,K26,IF(J30=2,K27,IF(J30=3,K28,IF(J30=4,K29,))))","v":0}]
["Brandweer:",{"$f":"IF(I11,\"Er is een brandweercontrole ter plaatse noodzakelijk\",)","v":0}]
["D1-D2-D3",{"$f":"IF(I12=1,\"Er is een veiligheidsoverleg nodig\",)","v":0}]
["Aandacht:",{"$f":"IF(I10=0,\"Ga verder met op de grijze knoppen een voor een te klikken\",\"U heeft niet alle velden ingevuld - vul aan aub\")","v":"U heeft niet alle velden ingevuld - vul aan aub"}]

{"sheet":"TENT","index":1,"n_rows":23,"n_cols":5,"rows_kept":23,"cut":false,"hidden":false,"merged":[[0,0,0,1],[21,0,21,2]]}
["Verklaring Tent"]
[]
[]
["De organisatie verklaart  hiermee dat de feesttent, geplaatst op adres:"]
["Straat & nr.",{"$f":"'Gegevens aanvrager'!B11","v":0}]
["Gemeente/Stad",{"$f":"'Gegevens aanvrager'!B12","v":0}]
["Postnummer",{"$f":"'Gegevens aanvrager'!B13","v":0}]
[{"$f":"'Gegevens aanvrager'!A10","v":"Naam Evenement:"},{"$f":"'Gegevens aanvrager'!B10","v":0}]
["Tent heeft navolgende afmetingen in meters:"]
["Lengte in meters",0]
["Breedte in meters",0,{"$f":"IF(B12>=2000,\"EDTC\",IF(B12<500,\"Geen Controle\",IF(B12<2000,\"Brandweer\")))","v":"Geen Controle"}]
["totaal oppervlakte",{"$f":"B10*B11","v":0}]
["Is het tentzeil van klasse A2 of C-s2, d0",null,null,false,false]
["Het tentzeil is gecontroleerd op grote scheuren ",null,null,false,false]
["Is het tentzeil strak genoeg aangespannen, er zitten geen grote zakken in het zeil",null,null,false,false]
["Zijn de tentmasten in goede staat, egaal recht en zonder zichtbare uitwendige beschadiging",null,null,false,false]
["Zijn de tussensteunen/middenmast(en) geborgen en verankerd",null,null,false,false]
["Zijn de spankabels voldoende aangespannen, in goede staat en geborgen tegen manipulatie door derden",null,null,false,false]
["Zijn piketten en andere scherpe uiteinden voldoende afgeschermd",null,null,false,false]
["Er hangen geen trussen, verlichtingen, boxen,..aan de constructie van de tent",null,null,false,false]
["Er wordt een attest van de tentenbouwer overgemaakt met: max windsnelheden en de te nemen acties",null,null,false,false]
[{"$f":"IF(D22<9,\"NIET in orde pas aan\",\"ok\")","v":"NIET in orde pas aan"},null,null,{"$f":"COUNTIF(D13:D21,\"waar\")","v":0},{"$f":"COUNTIF(E13:E21,\"waar\")","v":0}]
[{"$f":"IF(E22>0,\"U heeft neen aangeklikt ? Pas aan\",\"\")","v":""}]

{"sheet":"GAS","index":2,"n_rows":50,"n_cols":10,"rows_kept":50,"cut":false,"hidden":false,"merged":[[8,0,8,1],[19,0,19,1],[26,0,26,1],[40,0,40,1]]}
["VERKLARING GAS NBN D51-006",null,null,null,null,null,null,null,"Praktische info opstellingen (enkel bij internetverbinding actief)"]
["Slangen voor NIET ontspannen gas",null,null,{"$f":"IF(H2,\"Vul verder in\",IF(J2,\"NVT\",\"vul ja of neen in\"))","v":"vul ja of neen in"},null,null,null,false,"https://www.primagaz.be/nl-be/in-je-vrije-tijd",false]
["Leiding tss recipiënten en ontspanner > 5 bar is max 2 m lang ?",null,null,null,{"$f":"IF(H3,1,)","v":0},{"$f":"IF(J3,1,)","v":0},null,false,null,false]
["Naam fabrikant is vermeld ?",null,null,null,{"$f":"IF(H4,1,)","v":0},0,null,false,null,false]
["Geldigheidsduur is aanwezig (= datum + 10 jaar of exp datum) ?",null,null,null,{"$f":"IF(H5,1,)","v":0},0,null,false,null,false]
["Oranje kleur type klas 3 (MOP 30 bar) DIN 4815-1 ?",null,null,null,{"$f":"IF(H6,1,)","v":0},0,null,false,null,false]
["Vermelding aard van het gas is aanwezig (propaan-butaan/natural) ?",null,null,null,0,0,null,false,null,false]
["Er zijn GEEN beschadigingen aanwezig ?",null,null,null,0,{"$f":"IF(J8,1,)","v":0},null,false,null,false]
[{"$f":"IF(F9>0,\"U heeft neen aangeklikt ? Pas aan\",\"\")","v":""},null,{"$f":"IF(E9=6,\"OK\",IF(E9=0,\"geen actie\",\"Pas uw installatie aan\"))","v":"geen actie"},null,{"$f":"SUM(E3:E8)","v":0},{"$f":"SUM(F3:F8)","v":0}]
["Slangen voor ontspannen gas",null,null,{"$f":"IF(H10,\"Vul verder in\",IF(J10,\"NVT\",\"vul ja of neen in\"))","v":"vul ja of neen in"},null,null,null,false,null,false]
["Leiding tss ontspanner en verbruiker < 5 bar (max 2 meter)",null,null,null,{"$f":"IF(H11,1,)","v":0},{"$f":"IF(J11,1,)","v":0},null,false,null,false]
["De slang is over de volledige lengte zichtbaar/controleerbaar",null,null,null,{"$f":"IF(H12,1,)","v":0},0,null,false,null,false]
["Naam fabrikant is aanwezig",null,null,null,0,0,null,false,null,false]
["Geldigheidsduur (= datum + 5 jaar of exp datum)",null,null,null,0,0,null,false,null,false]
["Oranje kleur type klas 2 (MOP 10 bar) NBN EN 16436-1",null,null,null,0,0,null,false,null,false]
["Vermelding aard van het gas (propaan-butaan/natural)",null,null,null,0,0,null,false,null,false]
["Spanbeugels zijn aanwezig en juist aangebracht ?",null,null,null,0,0,null,false,null,false]
["Slangpilaar aanwezig/er worden GEEN T-stukken gebruikt",null,null,null,0,0,null,false,null,false]
["Er zijn GEEN beschadigingen aanwezig ?",null,null,null,0,{"$f":"IF(J19,1,)","v":0},null,false,null,false]
[{"$f":"IF(F20>0,\"U heeft neen aangeklikt ? Pas aan\",\"\")","v":""},null,{"$f":"IF(E20=9,\"OK\",IF(E20=0,\"geen actie\",\"Pas uw installatie aan\"))","v":"geen actie"},null,{"$f":"SUM(E11:E19)","v":0},{"$f":"SUM(F11:F19)","v":0}]
["Verbinding flessenbatterij en recipiënten",null,null,{"$f":"IF(H21,\"Vul verder in\",IF(J21,\"NVT\",\"vul ja of neen in\"))","v":"vul ja of neen in"},null,null,null,false,null,false]
["Oranje kleur type klas 3 (MOP 30 bar) DIN 4815-1 ?",null,null,null,{"$f":"IF(H22,1,)","v":0},{"$f":"IF(J22,1,)","v":0},null,false,null,false]
["Is er een dienstkraan met ingebouwde terugslagklep ?",null,null,null,{"$f":"IF(H23,1,)","v":0},{"$f":"IF(J23,1,)","v":0},null,false,null,false]
["Zijn de niet gebruikte slangen voorzien van een stop ?",null,null,null,0,0,null,false,null,false]
["Zijn de flessen verbonden met de afsluiter van de collector ?",null,null,null,0,0,null,false,null,false]
["Is er een afblaasbeveiliging aanwezig (verboden) ?",null,null,null,0,0,null,false,null,false]
[{"$f":"IF(F27>0,\"U heeft neen aangeklikt ? Pas aan\",\"\")","v":""},null,{"$f":"IF(E27=5,\"OK\",IF(E27=0,\"geen actie\",\"Pas uw installatie aan\"))","v":"geen actie"},null,{"$f":"SUM(E22:E26)","v":0},{"$f":"SUM(F22:F26)","v":0}]
["Drukregelaars",null,null,{"$f":"IF(H28,\"Vul verder in\",IF(J28,\"NVT\",\"vul ja of neen in\"))","v":"vul ja of neen in"},null,null,null,false,null,false]
["NBN EN 16129",null,null,null,{"$f":"IF(H29,1,)","v":0},{"$f":"IF(J29,1,)","v":0},null,false,null,false]
["Naam fabrikant aanwezig ?",null,null,null,{"$f":"IF(H30,1,)","v":0},0,null,false,null,false]
["Gassoort (butaan, propaan, LPG)",null,null,null,0,0,null,false,null,false]
["Fabricage datum",null,null,null,0,0,null,false,null,false]
["De nominale ontspanningsdruk/uitgangsdruk in bar/mbar",null,null,null,0,0,null,false,null,false]
["het gewaarborgde debiet in kg/h of g/h",null,null,null,0,0,null,false,null,false]
["een pijl die de richting van de gasstroom aangeeft",null,null,null,0,0,null,false,null,false]
["Het debiet = 1,2 maal vereiste debiet v/d verbruikstoestellen",null,null,null,0,0,null,false,null,false]
["Is de regelaar rechtstreeks aangesloten op de uitgang van de dienstkraan",null,null,null,0,0,null,false,null,false]
["Is de drukregelaar ontworpen voor de bediening van één verbruikstoestel",null,null,null,0,0,null,false,null,false]
["Uitgangsdruk Butaan 28 mbar",null,null,null,0,0,null,false,null,false]
["Uitgangsdruk Propaan 37 mbar",null,null,null,0,0,null,false,null,false]
[{"$f":"IF(F41>0,\"U heeft neen aangeklikt ? Pas aan\",\"\")","v":""},null,{"$f":"IF(E41=12,\"OK\",IF(E41=0,\"geen actie\",\"Pas uw installatie aan\"))","v":"geen actie"},null,{"$f":"SUM(E29:E40)","v":0},{"$f":"SUM(F29:F40)","v":0}]
["Algemeen",null,null,{"$f":"IF(H42,\"Vul verder in\",IF(J42,\"NVT\",\"vul ja of neen in\"))","v":"vul ja of neen in"}]
["Zijn er slangen in serie aangesloten ?",null,null,null,{"$f":"IF(J43,1,)","v":0},null,null,false,null,false]
["identificatieplaatje van het toestel aanwezig ?",null,null,null,{"$f":"IF(H44,1,)","v":0},null,null,false,null,false]
["gebruik van T-stukken ?",null,null,null,{"$f":"IF(J45,1,)","v":0},null,null,false,null,false]
[null,null,{"$f":"IF(E46=3,\"OK\",IF(E46=0,\"geen actie\",\"Pas uw installatie aan\"))","v":"geen actie"},null,{"$f":"SUM(E43:E45)","v":0}]
["Gasverbruikende toestellen toegelaten in België"]
["Cat I3+ (28-30/37 mbar of Cat I3p (37 mbar) zonder opslagruimte enkel buiten gebruiken",null,null,{"$f":"IF(H48,\"enkel buiten\",IF(J48,\"NVT\",\"vul ja of neen in\"))","v":"vul ja of neen in"},null,null,null,false,null,false]
["Cat I3p (50 mbar) professionele installaties. Indien opslag gas enkel buiten gebruiken.",null,null,{"$f":"IF(H49,\"professioneel\",IF(J49,\"NVT\",\"vul ja of neen in\"))","v":"vul ja of neen in"},null,null,null,false,null,false]
["Cat I3b (28-30 mbar) toestel met opslagruimte voor gasfles binnen",null,null,{"$f":"IF(H50,\"toetsel binnen\",IF(J50,\"NVT\",\"vul ja of neen in\"))","v":"vul ja of neen in"},null,null,null,false,null,false]

{"sheet":"VUURWERK","index":3,"n_rows":20,"n_cols":8,"rows_kept":20,"cut":false,"hidden":false,"merged":[[0,8,0,10],[0,0,0,1],[5,0,5,1],[16,0,16,1]]}
["VUURWERK",null,null,null,null,null,null,"Brandwaarschuwingsindex info"]
["Datum dd/mm/jjjj",null,null,null,null,null,null,"Waarschuwingen METEO"]
["Aanvang vuurwerk dd/mm/jjj uu:mm"]
["Einde vuurwerk dd/mm/jjjj uu:mm"]
["Duur",{"$f":"B4-B3","v":"00:00:00"}]
["Vuurwerkmaker"]
["Naam"]
["Straat & nr."]
["Gemeente"]
["Postnummer"]
["Certificaten & diploma's vuurwerkmaker","aan te leveren door vuurwerkmaker"]
["Referentielijst vorige spektakels","aan te leveren door vuurwerkmaker"]
["Afschrift verzekering","aan te leveren door vuurwerkmaker"]
["Materialenlijst gebruikt bij het spektakel","aan te leveren door vuurwerkmaker","Info"]
["Risicoanalyse","aan te leveren door vuurwerkmaker","Info"]
["Gedetailleerd plan evenement","zie inplantingsplan","Info"]
["Locatie vuurwerk indien anders"]
["Straat & nr."]
["Gemeente"]
["Postnummer"]

{"sheet":"CARNAVAL","index":4,"n_rows":37,"n_cols":9,"rows_kept":37,"cut":false,"hidden":false,"merged":[[0,0,0,5],[34,1,34,5],[36,0,37,5],[35,1,35,5],[33,0,33,2],[1,1,1,5],[2,1,2,5],[3,1,3,5],[4,1,4,5]]}
["Checklijst brandveiligheid deelnemers carnavalstoeten"]
["Naam carnavalsvereniging:",{"$f":"'Gegevens aanvrager'!B19","v":0}]
["Naam verantwoordelijke:",{"$f":"'Gegevens aanvrager'!B24","v":0}]
["GSM:",{"$f":"'Gegevens aanvrager'!B26","v":0}]
["e-mail:",{"$f":"'Gegevens aanvrager'!B27","v":0}]
["Blustoestel"]
["Is er min. 1 blustoestel aanwezig?\nMin. 6kg of 1BE - type poeder of water/schuim(CO2 enkel in supplement)",null,null,false,false,{"$f":"IF(I7=1,\"verplicht pas aan\",\"\")","v":""},null,{"$f":"IF(D7,1,)","v":0},{"$f":"IF(E7,1,)","v":0}]
["Is het toestel jaarlijks nagezien door een bevoegd persoon ?",null,null,false,false,{"$f":"IF(I8=1,\"controleer de sticker\",\"\")","v":""},null,{"$f":"IF(D8,1,)","v":0},{"$f":"IF(E8,1,)","v":0}]
["Is het blustoestel voorzien van een BENOR keurmerk?",null,null,false,false,{"$f":"IF(I9=1,\"uw toestel voldoet niet aan de eisen\",\"\")","v":""},null,0,0]
["Is het blustoestel goed zichtbaar en bereikbaar?",null,null,false,false,{"$f":"IF(I10=1,\"verplaats het toestel\",\"\")","v":""},null,0,0]
["Is het blustoestel stevig bevestigd?",null,null,false,false,{"$f":"IF(I11=1,\"pas aan voor vertrek\",\"\")","v":""},null,0,0]
["Zijn de deelnemers op de hoogte van de locatie van het blustoestel en weten ze hoe het te gebruiken?",null,null,false,false,{"$f":"IF(I12=1,\"informeer al uw medewerkers\",\"\")","v":""},null,0,0]
["Vluchtwegen"]
["Is de toegankelijkheid van de praalwagen veilig en gemakkelijk voor alle deelnemers?",null,null,false,false,{"$f":"IF(I14=1,\"denk aan uw veiligheid\",\"\")","v":""},null,0,0]
["Stroomaggregaten"]
["Is de aggregaat stevig en veilig gemonteerd?",null,null,false,false,{"$f":"IF(I16=1,\"indien niet pas aan\",\"\")","v":""},null,0,0]
["Bestaat de ruimte uit onbrandbaar materiaal?\nGeen brandbaar materiaal ter hoogte van een hittebron",null,null,false,false,{"$f":"IF(I17=1,\"verwijder het materiaal\",\"\")","v":""},null,0,0]
["Is er voldoende verluchting voorzien ?\ngeen opstapeling van uitlaatgassen mogelijk",null,null,false,false,{"$f":"IF(I18=1,\"er is CO-gevaar !!\",\"\")","v":""},null,0,0]
["Geeft de uitlaat rechtstreeks naar buiten uit?",null,null,false,false,{"$f":"IF(I19=1,\"er is acut CO gevaar\",\"\")","v":""},null,0,0]
["Is de uitlaat vrij en bevindt ze zich op voldoende afstand van brandbaar materiaal?",null,null,false,false,{"$f":"IF(I20=1,\"zie voorgaande opm verwijder dit\",\"\")","v":""},null,0,0]
["Is er opslag van brandstoffen op de wagen",null,null,false,false,{"$f":"IF(H21=1,\"verwijder de recipienten\",\"\")","v":""},null,0,0]
["Aggregaat is gevuld, GEEN Bij vulling tijdens stoet\n",null,null,false,false,{"$f":"IF(I22=1,\"u mag niet bijvullen\",\"\")","v":""},null,0,0]
["diversen"]
["Is er een zekeringskast voorzien?\nWordt ten zeerste aangeraden",null,null,false,false,{"$f":"IF(I24=1,\"eigen veiligheid ?\",\"\")","v":""},null,0,0]
["Zijn de richtlijnen van goed vakmanschap en het AREI opgevolgd?",null,null,false,false,{"$f":"IF(I25=1,\"de veiligheid kan niet worden gegarandeerd\",\"\")","v":""},null,0,0]
["Zijn er dominostekkers, opgerolde verlengsnoeren, blote bedrading, open verbindingen, ... aanwezig?",null,null,false,false,{"$f":"IF(H26=1,\"doe het nodige\",\"\")","v":""},null,0,0]
["Is de geluidsinstallatie stevig en veilig gemonteerd?",null,null,false,false,{"$f":"IF(I27=1,\"doe het nodige\",\"\")","v":""},null,0,0]
["Is de praalwagen reglementair bevestigd aan de trekker?",null,null,false,false,{"$f":"IF(I28=1,\"poliitiereglement naleven !!\",\"\")","v":""},null,0,0]
["Is er een stevige borstwering voorzien in geval van hoogte > 1m hoogte borstwering bij voorkeur 1m10 maar min. 1m met tussenleuning",null,null,false,false,{"$f":"IF(I29=1,\"vanaf 2 meter is valbeveiliging verplicht\",\"\")","v":""},null,0,0]
["Is er open vuur op de wagen aanwezig",null,null,false,false,{"$f":"IF(H30=1,\"u wordt uitgesloten\",\"\")","v":""},null,0,0]
["Zijn er gasflessen butaan/propaan op de wagen aanwezig",null,null,false,false,{"$f":"IF(H31=1,\"u wordt uitgesloten\",\"\")","v":""},null,0,0]
["Zijn drukhouders (bijv. acid) stevig bevestigd tegen omvallen?",null,null,false,false,{"$f":"IF(I32=1,\"pas dit aan\",\"\")","v":""},null,0,0]
["Is er een zaklamp aanwezig ? (enkel van toepassing tijdens avond evenementen)",null,null,false,false,{"$f":"IF(I33=1,\"afhankelijk van duisternis, doch aan te bevelen\",\"\")","v":""},null,0,0]
["Dit document dient op het voertuig aanwezig te zijn tijdens de stoet zodat het steeds voorgelegd kan worden tijdens een controle door de brandweerpost !"]
["Naam veiligheidsverantwoordelijke",{"$f":"B3","v":0}]
["Datum:",{"$f":"TODAY()","v":"2019-08-07"}]
["Handtekening:"]

{"sheet":"KAMPVUUR","index":5,"n_rows":24,"n_cols":8,"rows_kept":24,"cut":false,"hidden":false,"merged":[]}
["GROOT KAMPVUUR EN KERSTBOOMVERBRANDING",null,null,null,null,null,null,"Brandwaarschuwingsindex info"]
["De verbranding mag alleen geschieden op een veilige verbrandingsplaats die, te rekenen vanaf de buitenrand van de brandhaard, op minstens 100 meter gelegen is van gebouwen, voertuigen of andere brandbare constructies en / of gewassen - bomen - struiken.",null,null,null,null,null,null,"Waarschuwingen METEO"]
["De hoogte van de brandstapel is maximum 5 m."]
["Rond de brandhaard is een fysische veiligheidszone aan te brengen die in meter minstens overeenkomt met 1,5 maal de hoogte van de brandstapel. Deze veiligheidszone is niet toegankelijk voor het publiek."]
["De hellingshoek van de brandstapel met de ondergrond mag de 60° niet overschrijden. De hellingslijn van de brandstapel dient gemiddeld gezien recht te zijn onder een overdreven terugtrekking van de stapeling."]
["De brandstapel heeft maximum een grondoppervlakte van 100 m2. Indien de ondergrond van de brandhaard met zijn bijhorende veiligheidszone niet van aarde is, dan dient deze ondergrond te worden bedekt met een laag vochtige aarde of zand van minstens 5 cm dikte en dit alvorens met de opbouw van de brandstapel te beginnen."]
["De brandstapel is zodanig op te bouwen dat geen brandende stukken buiten de brandhaard kunnen vallen. Hiertoe zal de stapeling zo worden uitgevoerd dat de dikste en zwaarste stukken zich onderaan en in het midden van de brandstapel bevinden, terwijl de dunnere en lichtere stukken aan de buitenzijde worden geplaatst."]
["Kampvuren worden enkel ontstoken op een ondergrond zonder begroeiing en bij fase GROEN of Geel inzake voorzorgsmaatregelen bij bosbranden. Indien ORANJE of ROOD wordt aangegeven is het ten strengste verboden open vuur te maken."]
["De voorraadstapels of opslagplaatsen bevinden zich op voldoende afstand, minimaal 25 meter, van de vuurhaard en moeten vlot bereikbaar zijn voor de brandweer."]
["Het vuur wordt enkel aangestoken met klein hout, papier en eventueel aansteekblokken. Benzine, gasolie of andere brandstoffen zijn daarvoor streng verboden."]
["De organisatoren zorgen ervoor dat in de onmiddellijke omgeving van het kampvuur geen obstakels voorkomen waarover personen kunnen vallen en/of struikelen."]
["De organisatoren zien erop toe dat de personen die rond het kampvuur zitten geen kleding dragen die vervaardigd is uit gemakkelijk brandbare materialen. (kunststoffen regenjasjes, fleece…)."]
["Het kampvuur wordt gehouden op een veilige afstand van elke bebossing en/of bebouwing. Die afstand wordt in overleg met de brandweer bepaald. Voor gebouwen is dit voor een kampvuur met beperkte omvang minimaal 6 meter."]
["Bij het beëindigen van het kampvuur zorgen de organisatoren ervoor dat het vuur volledig gedoofd wordt. Besprenkelen met water en afdekken met voldoende nat zand."]
["Indien in de omgeving van het vuur tenten of barakken aangewend worden, zijn de materialen voor de opbouw van deze zaken altijd deugdelijk en goed onderhouden. Bij gebruik van een tent leggen de organisatoren een attest voor waaruit blijkt dat het tentzeil vervaardigd is uit moeilijk ontvlambaar materiaal. (M2 of C-s2, d2 - C-s2-d0)"]
["Het kampvuur wordt enkel gehouden onder constant toezicht van een meerderjarige. In de nabijheid van het vuur dient steeds een afgevaardigde van de organisator aanwezig te zijn. Het vuur mag niet onbewaakt achtergelaten worden tot de volledige uitdoving ervan. (aandacht voor alcohol gebruik)"]
["De organisatoren zorgen voor voldoende blusmiddelen. Het aantal wordt in overleg met de brandweer bepaald. Minimaal dienen navolgende eisen worden nageleefd: Een schuimblustoestel met minimaal 1 bluseenheid ofwel dient een\nwaterslang onder druk in de nabije omgeving aanwezig te zijn. Eveneens dient er voldoende nat zand aanwezig te zijn voor het afdekken van het vuur. "]
["De blusmiddelen moeten bedrijfsklaar zijn en op een goed zichtbare en gemakkelijk bereikbare plaats worden opgesteld. Elke medewerker moet deze blusmiddelen kunnen gebruiken en moet ingrijpen bij het minste gevaar."]
["De hydranten in de onmiddellijke omgeving van de inrichting worden altijd vrijgehouden en zijn gemakkelijk bereikbaar voor de brandweer."]
["De toegangswegen tot de inrichting worden altijd vrijgehouden en zijn gemakkelijk bereikbaar voor de hulpdiensten."]
["Bij een windkracht van meer dan 5 Beaufort moet het kampvuur afgelast worden."]
["De organisatie stelt alles in het werk om: het ontstaan, de ontwikkeling en de voortplanting van brand te voorkomen; de veiligheid van de aanwezigen te waarborgen; preventief het ingrijpen van de brandweer te vergemakkelijken; de omwonenden van het terrein waarop de verbranding plaatsvindt in kennis te stellen van de activiteit"]
["Na afloop van het kampvuur wordt door de organisator een rondgang uitgevoerd en zal de brandhaard evenals zijn directe omgeving, zorgvuldig worden afgezocht naar achtergebleven vuurresten. Deze resten worden gedoofd. Pas als alle vuurresten verdwenen zijn mogen de verantwoordelijke de verbrandingsplaats verlaten."]
["Alle vuurhaarden moeten worden gedoofd met een overvloedige hoeveelheid water en de stookafval/assen moet zo spoedig mogelijk worden verwijderd."]

{"sheet":"Inplantingsplan","index":6,"n_rows":5,"n_cols":11,"rows_kept":5,"cut":false,"hidden":false,"merged":[[3,9,3,10]]}
["GoogleMaps"]
[null,null,null,null,null,null,null,null,null,null,"Info MyMaps"]
[]
[null,null,null,null,null,null,null,null,null,{"$f":"HYPERLINK(F5,\"Ga Naar Kaart\")","v":"Ga Naar Kaart"}]
[null,null,null,null,null,"plak hier uw link"]

{"sheet":"Organisatie","index":7,"n_rows":23,"n_cols":4,"rows_kept":23,"cut":false,"hidden":false,"merged":[[10,0,15,0],[16,0,21,0],[22,0,27,0],[1,1,1,3],[2,1,2,3],[3,1,3,3],[4,1,4,3],[6,1,6,3],[5,1,5,3]]}
[]
["Naam evenement",{"$f":"'Gegevens aanvrager'!B10","v":0}]
["Organisatie",{"$f":"'Gegevens aanvrager'!B19","v":0}]
["Straat en nr. evenement",{"$f":"'Gegevens aanvrager'!B11","v":0}]
["plaats",{"$f":"'Gegevens aanvrager'!B12","v":0}]
["postnummer",{"$f":"'Gegevens aanvrager'!B12","v":0}]
["Datum evenment",{"$f":"'Gegevens aanvrager'!B14","v":0}]
[null,"Voornaam  + achternaam","GSM","Paraf"]
["Hoofd verantwoordelijke"]
["Verantwoordelijke communicatie publiek"]
["Evacuatieverantwoordelijke"]
[]
[]
[]
[]
[]
["Blusverantwoordelijke"]
[]
[]
[]
[]
[]
["Opvang Hulpdiensten"]

{"sheet":"Intro","index":8,"n_rows":0,"n_cols":0,"rows_kept":0,"cut":false,"hidden":false,"merged":[]}